fUSD/lending_fUSD_20250510
["ID","MTS","AMOUNT","RATE_DAILY","PERIOD"]
[360535695,1746857445290,-323.86175105,0.00019999,2]
[360535696,1746857445299,-400.0,0.00019999,2]
[360535697,1746857445309,-450.0,0.00019999,2]
[360535698,1746857445318,-400.0,0.00019999,2]
[360535699,1746857445328,-400.0,0.00019999,2]
[360535700,1746857445339,-495.51999999,0.00019999,2]
[360535701,1746857445348,-450.0,0.00019999,2]
[360535702,1746857445357,-400.25001304,0.00019999,2]
[360535703,1746857445367,-400.78321181,0.00019999,2]
[360535704,1746857445376,-450.0,0.00019999,2]
[360535705,1746857445386,-400.0,0.00019999,2]
[360535706,1746857445396,-400.0,0.00019999,2]
[360535707,1746857445405,-321.1985078,0.00019999,2]
[360535708,1746857445414,-400.0,0.00019999,2]
[360535709,1746857445423,-402.77244979,0.00019999,2]
[360535710,1746857445432,-401.81836128,0.00019999,2]
[360535711,1746857445441,-400.0,0.00019999,2]
[360535712,1746857445451,-402.41837916,0.00019999,2]
[360535713,1746857445460,-400.0,0.00019999,2]
[360535714,1746857445470,-407.8827047,0.00019999,2]
[360535715,1746857445479,-450.0,0.00019999,2]
[360535716,1746857445489,-362.62773769,0.00019999,2]
[360535717,1746857445498,-401.45685778,0.00019999,2]
[360535718,1746857445508,-400.0,0.00019999,2]
[360535719,1746857445518,-400.0,0.00019999,2]
[360535720,1746857445529,-400.0,0.00019999,2]
[360535721,1746857445539,-491.14254,0.00019999,2]
[360535722,1746857445548,-450.0,0.00019999,2]
[360535723,1746857445558,-400.0,0.00019999,2]
[360535724,1746857445567,-302.28,0.00019999,2]
[360535725,1746857445578,-400.0,0.00019999,2]
[360535726,1746857445589,-400.0,0.00019999,2]
[360535727,1746857445599,-282.42,0.00019999,2]
[360535728,1746857445609,-450.0,0.00019999,2]
[360535729,1746857445619,-275.1,0.00019999,2]
[360535730,1746857445628,-501.08,0.00019999,2]
[360535731,1746857445638,-501.08,0.00019999,2]
[360535732,1746857445648,-501.08,0.00019999,2]
[360535733,1746857445657,-501.08,0.00019999,2]
[360535734,1746857445667,-501.08,0.00019999,2]
[360535735,1746857445678,-501.08,0.00019999,2]
[360535736,1746857445687,-501.08,0.00019999,2]
[360535737,1746857445697,-501.08,0.00019999,2]
[360535738,1746857445706,-501.08,0.00019999,2]
[360535739,1746857445716,-501.08,0.00019999,2]
[360535740,1746857445726,-501.08,0.00019999,2]
[360535741,1746857445735,-501.08,0.00019999,2]
[360535742,1746857445744,-501.08,0.00019999,2]
[360535743,1746857445754,-501.08,0.00019999,2]
[360535744,1746857445764,-501.08,0.00019999,2]
[360535745,1746857445773,-501.08,0.00019999,2]
[360535746,1746857445783,-393.77135083,0.00019999,2]
[360535747,1746857445796,-107.30864917,0.00019999,2]
[360535748,1746857445805,-501.08,0.00019999,2]
[360535749,1746857445814,-49.98995284,0.00019999,2]
[360535750,1746857445826,-451.09004716,0.00019999,2]
[360535751,1746857445837,-501.08,0.00019999,2]
[360535752,1746857445847,-501.08,0.00019999,2]
[360535753,1746857445857,-501.08,0.00019999,2]
[360535754,1746857445866,-501.08,0.00019999,2]
[360535755,1746857445875,-501.2697747,0.00019999,2]
[360535756,1746857445884,-400.0,0.00019999,2]
[360535757,1746857445894,-400.0,0.00019999,2]
[360535758,1746857445903,-400.0,0.00019999,2]
[360535759,1746857445913,-400.0,0.00019999,2]
[360535760,1746857445924,-400.0,0.00019999,2]
[360535761,1746857445937,-400.0,0.00019999,2]
[360535762,1746857445946,-400.0,0.00019999,2]
[360535763,1746857445955,-400.0,0.00019999,2]
[360535764,1746857445964,-400.0,0.00019999,2]
[360535765,1746857445974,-400.0,0.00019999,2]
[360535766,1746857445983,-482.31,0.00019999,2]
[360535767,1746857445992,-361.01017814,0.00019999,2]
[360535768,1746857446003,-88.98982186,0.00019999,2]
[360535770,1746857446015,-176.13732021,0.00019999,2]
[360535772,1746857446025,-2.53358517,0.00019999,2]
[360535774,1746857446043,-642.66641483,0.00019999,2]
[360535775,1746857446052,-497.78535578,0.00019999,2]
[360535776,1746857446062,-147.41464422,0.00019999,2]
[360535777,1746857446072,-645.2,0.00019999,2]
[360535778,1746857446081,-645.2,0.00019999,2]
[360535779,1746857446091,-645.2,0.00019999,2]
[360535780,1746857446101,-645.2,0.00019999,2]
[360535781,1746857446111,-645.2,0.00019999,2]
[360535782,1746857446120,-645.2,0.00019999,2]
[360535783,1746857446130,-645.2,0.00019999,2]
[360535784,1746857446139,-645.2,0.00019999,2]
[360535785,1746857446149,-645.2,0.00019999,2]
[360535786,1746857446160,-645.2,0.00019999,2]
[360535787,1746857446171,-400.0,0.00019999,2]
[360535788,1746857446182,-645.2,0.00019999,2]
[360535789,1746857446194,-400.0,0.00019999,2]
[360535790,1746857446203,-645.2,0.00019999,2]
[360535791,1746857446213,-400.0,0.00019999,2]
[360535792,1746857446222,-645.2,0.00019999,2]
[360535794,1746857446232,-400.0,0.00019999,2]
[360535795,1746857446242,-645.2,0.00019999,2]
[360535797,1746857446252,-400.0,0.00019999,2]
[360535798,1746857446261,-645.2,0.00019999,2]
[360535799,1746857446270,-400.0,0.00019999,2]
[360535800,1746857446279,-645.2,0.00019999,2]
[360535801,1746857446288,-400.0,0.00019999,2]
[360535802,1746857446297,-645.2,0.00019999,2]
[360535803,1746857446306,-401.90766788,0.00019999,2]
[360535804,1746857446315,-645.2,0.00019999,2]
[360535805,1746857446324,-645.2,0.00019999,2]
[360535806,1746857446335,-645.2,0.00019999,2]
[360535807,1746857446344,-645.2,0.00019999,2]
[360535808,1746857446354,-645.35790855,0.00019999,2]
[360535809,1746857446363,-547.04933002,0.00019999,2]
[360535810,1746857446372,-400.0,0.00019999,2]
[360535811,1746857446382,-200.65407389,0.00019999,2]
[360535812,1746857446392,-400.0,0.00019999,2]
[360535813,1746857446402,-400.0,0.00019999,2]
[360535814,1746857446411,-400.0,0.00019999,2]
[360535815,1746857446421,-531.4909,0.00019999,2]
[360535816,1746857446430,-620.61378941,0.00019999,2]
[360535817,1746857446439,-500.0,0.00019999,2]
[360535818,1746857446448,-526.2895532,0.00019999,2]
[360535819,1746857446458,-472930.02213262,0.0002,2]
[360535820,1746857446470,-71424.88,0.0002,2]
[360535821,1746857446481,-7349.88311069,0.0002,2]
[360535822,1746857446492,-341.77000004,0.0002,2]
[360535823,1746857446503,-700.25399793,0.0002,2]
[360535824,1746857446515,-2618583.1646726,0.0002,2]
[360535825,1746857461587,162.46,0.0002,90]
[360535826,1746857566234,221.68977065,0.00029,120]
[360535827,1746857581738,250.0,0.00017,2]
[360535828,1746857582988,300.0,0.00019,2]
[360535829,1746857670671,20430.9,0.00019213,2]
[360535830,1746857720921,200.07,0.0003,30]
[360535833,1746857751393,3028.12,0.00019216,2]
[360535834,1746857831142,168.75,0.00019212,2]
[360535835,1746857863553,1207.46,0.000195,2]
[360535838,1746858064200,1000.0,0.0001902,2]
[360535839,1746858340517,5067.42630664,0.00025,30]
[360535841,1746858433041,343.3,0.00017233,2]
[360535842,1746858433224,343.3,0.00019497,2]
[360535885,1746858631805,-151.0,0.00019754,2]
[360535886,1746858631816,-250.0,0.00019754,2]
[360535887,1746858631827,-200.0,0.00019754,2]
[360535888,1746858631836,-200.0,0.00019754,2]
[360535889,1746858631846,-191.45630862,0.00019799,2]
[360535890,1746858631856,-207.4,0.00019887,2]
[360535891,1746858631866,-280.55157617,0.00019898,2]
[360535892,1746858631875,-280.55157613,0.00019898,2]
[360535893,1746858631886,-280.55157613,0.00019898,2]
[360535894,1746858631896,-280.55157613,0.00019899,2]
[360535895,1746858631905,-280.55157613,0.00019899,2]
[360535896,1746858631914,-300.0,0.00019899,2]
[360535897,1746858631924,-1200.0,0.00019899,2]
[360535898,1746858631933,-300.0,0.00019899,2]
[360535899,1746858631944,-280.55157613,0.00019899,2]
[360535900,1746858631954,-280.55157613,0.00019899,2]
[360535901,1746858631963,-280.55157613,0.000199,2]
[360535902,1746858631972,-280.55157613,0.000199,2]
[360535903,1746858631982,-788.8661242,0.000199,2]
[360535904,1746858631991,-11859.79524898,0.000199,2]
[360535905,1746858632000,-2062.06622395,0.000199,2]
[360535906,1746858632010,-497.62332508,0.000199,2]
[360535907,1746858632019,-1717.8352958,0.000199,2]
[360535908,1746858632044,-416.36565072,0.000199,2]
[360535909,1746858632054,-1035.63434928,0.000199,2]
[360535910,1746858632070,-501.84968142,0.000199,2]
[360535911,1746858632100,-68.81578219,0.000199,2]
[360535912,1746858632111,-526.24866953,0.000199,2]
[360535913,1746858632120,-280.55157613,0.000199,2]
[360535914,1746858632130,-215.37540328,0.000199,2]
[360535915,1746858632139,-500.0,0.00019973,2]
[360535916,1746858632148,-500.0,0.00019973,2]
[360535917,1746858632158,-617.8764866,0.00019973,2]
[360535919,1746858632167,-354.95671708,0.00019973,2]
[360535921,1746858632177,-145.04328292,0.00019973,2]
[360535922,1746858632186,-500.0,0.00019973,2]
[360535924,1746858632195,-500.0,0.00019973,2]
[360535926,1746858632204,-185.93927084,0.00019988,2]
[360535927,1746858632215,-272.25372916,0.00019988,2]
[360535929,1746858632225,-158.70940686,0.00019988,2]
[360535931,1746858632234,-188.52228189,0.00019988,2]
[360535932,1746858632242,-92.21514208,0.0001999,2]
[360536012,1746858637760,-396.34416,0.0001999,2]
[360536013,1746858637928,-397.52802562,0.0001999,2]
[360536014,1746858637939,-196.8125309,0.00019996,2]
[360536015,1746858637948,-2589.6236467,0.00019996,2]
[360536016,1746858637957,-5810.07639843,0.00019996,2]
[360536018,1746858638048,-12446.81598786,0.00019996,2]
[360536019,1746858638062,-11720.67679787,0.00019996,2]
[360536020,1746858638074,-16574.8515288,0.00019996,2]
[360536021,1746858638084,-3835.28093014,0.00019996,2]
[360536022,1746858638094,-2034.11033511,0.00019996,2]
[360536023,1746858638104,-14438.82183443,0.00019996,2]
[360536024,1746858638115,-1723.27960556,0.00019996,2]
[360536025,1746858638124,-1983.2038449,0.00019996,2]
[360536026,1746858638134,-666.0,0.00019998,2]
[360536027,1746858638143,-319.49570902,0.00019998,2]
[360536030,1746858640143,-830.50429098,0.00019998,2]
[360536031,1746858640152,-400.0,0.00019998,2]
[360536032,1746858640162,-475.25813311,0.00019998,2]
[360536033,1746858640172,-473.8505603,0.00019998,2]
[360536034,1746858640184,-450.0,0.00019998,2]
[360536035,1746858640195,-450.0,0.00019998,2]
[360536036,1746858640205,-235.25012196,0.00019998,2]
[360536037,1746858640216,-483.18611403,0.00019998,2]
[360536038,1746858640227,-450.0,0.00019998,2]
[360536039,1746858640238,-463.78356434,0.00019998,2]
[360536040,1746858640247,-458.31321385,0.00019998,2]
[360536041,1746858640256,-479.58841394,0.00019998,2]
[360536042,1746858640267,-500.0,0.00019998,2]
[360536043,1746858640277,-500.0,0.00019998,2]
[360536044,1746858640288,-500.0,0.00019998,2]
[360536045,1746858640299,-500.0,0.00019998,2]
[360536046,1746858640308,-500.0,0.00019998,2]
[360536047,1746858640318,-500.0,0.00019998,2]
[360536048,1746858640328,-423.88571298,0.00019998,2]
[360536049,1746858640337,-500.0,0.00019998,2]
[360536050,1746858640347,-461.35245447,0.00019998,2]
[360536051,1746858640356,-429.11550101,0.00019998,2]
[360536052,1746858640367,-364.03163088,0.00019998,2]
[360536053,1746858640377,-400.0,0.00019998,2]
[360536054,1746858640386,-400.0,0.00019998,2]
[360536055,1746858640395,-209.13078625,0.00019998,2]
[360536056,1746858640405,-400.0,0.00019998,2]
[360536057,1746858640415,-400.0,0.00019998,2]
[360536058,1746858640426,-400.0,0.00019998,2]
[360536059,1746858640435,-400.0,0.00019998,2]
[360536060,1746858640445,-416.55700735,0.00019998,2]
[360536061,1746858640454,-400.0,0.00019998,2]
[360536062,1746858640464,-400.0,0.00019998,2]
[360536063,1746858640473,-522.94726512,0.00019998,2]
[360536064,1746858640482,-498.34637213,0.00019998,2]
[360536065,1746858640492,-400.0,0.00019998,2]
[360536066,1746858640501,-400.0,0.00019998,2]
[360536067,1746858640510,-505.13409398,0.00019998,2]
[360536068,1746858640519,-400.0,0.00019998,2]
[360536069,1746858640529,-531.63544139,0.00019998,2]
[360536070,1746858640538,-400.0,0.00019998,2]
[360536071,1746858640547,-450.0,0.00019998,2]
[360536072,1746858640556,-400.0,0.00019998,2]
[360536073,1746858640565,-431.49895742,0.00019998,2]
[360536074,1746858640575,-400.0,0.00019998,2]
[360536075,1746858640584,-365.26056584,0.00019998,2]
[360536076,1746858640593,-450.0,0.00019998,2]
[360536077,1746858640602,-400.0,0.00019998,2]
[360536078,1746858640612,-400.0,0.00019998,2]
[360536079,1746858640621,-400.0,0.00019998,2]
[360536080,1746858640631,-400.0,0.00019998,2]
[360536081,1746858640640,-400.0,0.00019998,2]
[360536082,1746858640649,-532.26,0.00019998,2]
[360536083,1746858640658,-258.80789646,0.00019998,2]
[360536084,1746858640668,-400.0,0.00019998,2]
[360536085,1746858640677,-400.0,0.00019998,2]
[360536086,1746858640686,-400.0,0.00019998,2]
[360536087,1746858640695,-484.96837224,0.00019998,2]
[360536088,1746858640704,-450.0,0.00019998,2]
[360536089,1746858640714,-450.0,0.00019998,2]
[360536090,1746858640723,-450.0,0.00019998,2]
[360536091,1746858640732,-400.0,0.00019998,2]
[360536092,1746858640742,-400.0,0.00019998,2]
[360536093,1746858640751,-400.0,0.00019998,2]
[360536094,1746858640760,-400.0,0.00019998,2]
[360536095,1746858640769,-400.0,0.00019998,2]
[360536096,1746858640779,-450.00550142,0.00019998,2]
[360536097,1746858640788,-400.0,0.00019998,2]
[360536098,1746858640797,-400.0,0.00019998,2]
[360536099,1746858640806,-516.37238113,0.00019998,2]
[360536100,1746858640816,-400.0,0.00019998,2]
[360536101,1746858640825,-400.0,0.00019998,2]
[360536102,1746858640834,-400.0,0.00019998,2]
[360536103,1746858640843,-400.0,0.00019998,2]
[360536104,1746858640852,-400.0,0.00019998,2]
[360536105,1746858640862,-169.32511131,0.00019998,2]
[360536106,1746858640871,-400.0,0.00019998,2]
[360536107,1746858640880,-400.0,0.00019998,2]
[360536108,1746858640890,-1424.93,0.00019998,2]
[360536109,1746858640900,-400.0,0.00019998,2]
[360536110,1746858640909,-400.0,0.00019998,2]
[360536111,1746858640918,-485.77445083,0.00019998,2]
[360536112,1746858640929,-400.0,0.00019998,2]
[360536113,1746858640939,-400.0,0.00019998,2]
[360536114,1746858640949,-400.0,0.00019998,2]
[360536115,1746858640958,-400.0,0.00019998,2]
[360536116,1746858640968,-400.0,0.00019998,2]
[360536117,1746858640977,-485.91214872,0.00019998,2]
[360536118,1746858640987,-1000.0,0.00019998,2]
[360536119,1746858640996,-525.5284123,0.00019998,2]
[360536120,1746858641005,-400.0,0.00019998,2]
[360536121,1746858641014,-400.0,0.00019998,2]
[360536122,1746858641023,-400.0,0.00019998,2]
[360536123,1746858641033,-400.0,0.00019998,2]
[360536124,1746858641042,-400.0,0.00019998,2]
[360536125,1746858641051,-400.0,0.00019998,2]
[360536126,1746858641060,-400.0,0.00019998,2]
[360536127,1746858641069,-400.0,0.00019998,2]
[360536128,1746858641078,-505.02,0.00019998,2]
[360536129,1746858641088,-400.0,0.00019998,2]
[360536130,1746858641098,-400.0,0.00019998,2]
[360536131,1746858641107,-400.0,0.00019998,2]
[360536132,1746858641116,-400.0,0.00019998,2]
[360536133,1746858641125,-400.0,0.00019998,2]
[360536134,1746858641135,-400.0,0.00019998,2]
[360536135,1746858641144,-400.0,0.00019998,2]
[360536136,1746858641153,-412.63049963,0.00019998,2]
[360536137,1746858641163,-425.82975695,0.00019998,2]
[360536138,1746858641172,-400.0,0.00019998,2]
[360536139,1746858641182,-400.0,0.00019998,2]
[360536140,1746858641191,-400.0,0.00019998,2]
[360536141,1746858641200,-400.0,0.00019998,2]
[360536142,1746858641209,-400.0,0.00019998,2]
[360536143,1746858641218,-258.23,0.00019998,2]
[360536144,1746858641227,-400.0,0.00019998,2]
[360536145,1746858641236,-537.82,0.00019998,2]
[360536146,1746858641246,-400.0,0.00019998,2]
[360536147,1746858641255,-400.0,0.00019998,2]
[360536148,1746858641265,-400.0,0.00019998,2]
[360536149,1746858641274,-400.0,0.00019998,2]
[360536150,1746858641283,-400.0,0.00019998,2]
[360536151,1746858641297,-400.0,0.00019998,2]
[360536152,1746858641306,-400.0,0.00019998,2]
[360536153,1746858641315,-400.0,0.00019998,2]
[360536154,1746858641324,-400.0,0.00019998,2]
[360536155,1746858641335,-400.0,0.00019998,2]
[360536156,1746858641344,-400.0,0.00019998,2]
[360536157,1746858641353,-400.0,0.00019998,2]
[360536158,1746858641362,-489.94012298,0.00019998,2]
[360536159,1746858641371,-400.0,0.00019998,2]
[360536160,1746858641380,-400.0,0.00019998,2]
[360536161,1746858641390,-400.0,0.00019998,2]
[360536162,1746858641399,-400.0,0.00019998,2]
[360536163,1746858641408,-400.0,0.00019998,2]
[360536164,1746858641417,-400.0,0.00019998,2]
[360536165,1746858641426,-400.0,0.00019998,2]
[360536166,1746858641435,-400.0,0.00019998,2]
[360536167,1746858641444,-400.0,0.00019998,2]
[360536168,1746858641453,-511.68370393,0.00019998,2]
[360536169,1746858641462,-400.0,0.00019998,2]
[360536170,1746858641471,-400.0,0.00019998,2]
[360536171,1746858641480,-400.0,0.00019998,2]
[360536172,1746858641489,-400.0,0.00019998,2]
[360536173,1746858641498,-400.0,0.00019998,2]
[360536174,1746858641508,-499.96118887,0.00019998,2]
[360536175,1746858641517,-400.0,0.00019998,2]
[360536176,1746858641526,-400.0,0.00019998,2]
[360536177,1746858641535,-400.0,0.00019998,2]
[360536178,1746858641544,-400.0,0.00019998,2]
[360536179,1746858641553,-400.0,0.00019998,2]
[360536180,1746858641562,-400.0,0.00019998,2]
[360536181,1746858641571,-400.0,0.00019998,2]
[360536182,1746858641580,-400.0,0.00019998,2]
[360536183,1746858641590,-400.0,0.00019998,2]
[360536184,1746858641599,-450.0,0.00019998,2]
[360536185,1746858641608,-400.0,0.00019998,2]
[360536186,1746858641617,-443.39602032,0.00019998,2]
[360536187,1746858641626,-318.46218098,0.00019999,2]
[360536188,1746858641636,-411.78109688,0.00019999,2]
[360536189,1746858641645,-400.0,0.00019999,2]
[360536190,1746858641654,-450.0,0.00019999,2]
[360536191,1746858641663,-457.34122669,0.00019999,2]
[360536192,1746858641672,-460.0,0.00019999,2]
[360536193,1746858641682,-540.65313359,0.00019999,2]
[360536194,1746858641691,-475.50779371,0.00019999,2]
[360536195,1746858641699,-491.55524051,0.00019999,2]
[360536196,1746858641709,-487.85939333,0.00019999,2]
[360536197,1746858641718,-450.0,0.00019999,2]
[360536198,1746858641727,-377.20829626,0.00019999,2]
[360536199,1746858641736,-457.36895816,0.00019999,2]
[360536200,1746858641745,-400.0,0.00019999,2]
[360536201,1746858641754,-400.58579402,0.00019999,2]
[360536202,1746858641764,-1000.0,0.00019999,2]
[360536203,1746858641773,-400.0,0.00019999,2]
[360536204,1746858641782,-457.93206243,0.00019999,2]
[360536205,1746858641792,-400.0,0.00019999,2]
[360536206,1746858641802,-259.4926725,0.00019999,2]
[360536207,1746858641811,-150.0,0.00019999,2]
[360536208,1746858641821,-235.50064677,0.00019999,2]
[360536209,1746858641830,-500.0,0.00019999,2]
[360536210,1746858641839,-501.56326692,0.00019999,2]
[360536211,1746858641848,-288.62031541,0.00019999,2]
[360536212,1746858641858,-400.0,0.00019999,2]
[360536213,1746858641867,-404.68081927,0.00019999,2]
[360536214,1746858641876,-400.0,0.00019999,2]
[360536215,1746858641886,-410.58645575,0.00019999,2]
[360536216,1746858641895,-400.0,0.00019999,2]
[360536217,1746858641904,-400.0,0.00019999,2]
[360536218,1746858641914,-401.56184336,0.00019999,2]
[360536219,1746858641924,-400.0,0.00019999,2]
[360536220,1746858641934,-157.93300085,0.00019999,2]
[360536221,1746858641943,-400.0,0.00019999,2]
[360536222,1746858641952,-400.0,0.00019999,2]
[360536223,1746858641962,-400.0,0.00019999,2]
[360536224,1746858641971,-400.0,0.00019999,2]
[360536225,1746858641981,-406.64833711,0.00019999,2]
[360536226,1746858641990,-400.0,0.00019999,2]
[360536227,1746858641999,-400.0,0.00019999,2]
[360536228,1746858642009,-400.0,0.00019999,2]
[360536229,1746858642018,-400.0,0.00019999,2]
[360536230,1746858642027,-400.0,0.00019999,2]
[360536231,1746858642036,-407.44324854,0.00019999,2]
[360536232,1746858642046,-410.80832042,0.00019999,2]
[360536233,1746858642055,-413.88629758,0.00019999,2]
[360536234,1746858642065,-400.0,0.00019999,2]
[360536235,1746858642074,-162.00319074,0.00019999,2]
[360536236,1746858642246,-400.0,0.00019999,2]
[360536237,1746858642256,-402.42411199,0.00019999,2]
[360536238,1746858642265,-400.0,0.00019999,2]
[360536239,1746858642274,-419.33433311,0.00019999,2]
[360536240,1746858642284,-400.0,0.00019999,2]
[360536241,1746858642298,-400.0,0.00019999,2]
[360536242,1746858642307,-400.0,0.00019999,2]
[360536243,1746858642316,-417.21302156,0.00019999,2]
[360536244,1746858642325,-400.0,0.00019999,2]
[360536245,1746858642336,-403.21698985,0.00019999,2]
[360536246,1746858642345,-400.0,0.00019999,2]
[360536247,1746858642354,-412.24373992,0.00019999,2]
[360536248,1746858642365,-400.0,0.00019999,2]
[360536249,1746858642374,-410.50023843,0.00019999,2]
[360536250,1746858642384,-400.0,0.00019999,2]
[360536251,1746858642395,-400.0,0.00019999,2]
[360536252,1746858642404,-400.0,0.00019999,2]
[360536253,1746858642413,-409.60271949,0.00019999,2]
[360536254,1746858642422,-422.08977062,0.00019999,2]
[360536255,1746858642431,-417.54588936,0.00019999,2]
[360536256,1746858642441,-400.0,0.00019999,2]
[360536257,1746858642450,-402.84560175,0.00019999,2]
[360536258,1746858642459,-400.0,0.00019999,2]
[360536259,1746858642468,-380.7238998,0.00019999,2]
[360536260,1746858642476,-400.0,0.00019999,2]
[360536261,1746858642485,-411.53797448,0.00019999,2]
[360536262,1746858642495,-423.82521229,0.00019999,2]
[360536263,1746858642504,-400.0,0.00019999,2]
[360536264,1746858642513,-417.98475551,0.00019999,2]
[360536265,1746858642523,-405.84898672,0.00019999,2]
[360536266,1746858642532,-400.0,0.00019999,2]
[360536267,1746858642541,-400.0,0.00019999,2]
[360536268,1746858642550,-450.0,0.00019999,2]
[360536269,1746858642559,-400.0,0.00019999,2]
[360536270,1746858642568,-400.0,0.00019999,2]
[360536271,1746858642577,-400.0,0.00019999,2]
[360536272,1746858642587,-391.44273567,0.00019999,2]
[360536273,1746858642596,-400.0,0.00019999,2]
[360536274,1746858642605,-400.0,0.00019999,2]
[360536276,1746858642615,-515.69461703,0.00019999,2]
[360536277,1746858642623,-400.0,0.00019999,2]
[360536278,1746858642633,-450.0,0.00019999,2]
[360536279,1746858642643,-450.0,0.00019999,2]
[360536280,1746858642652,-400.0,0.00019999,2]
[360536281,1746858642662,-400.0,0.00019999,2]
[360536282,1746858642671,-400.0,0.00019999,2]
[360536283,1746858642681,-211.29321502,0.00019999,2]
[360536285,1746858642690,-400.0,0.00019999,2]
[360536286,1746858642699,-400.0,0.00019999,2]
[360536287,1746858642708,-400.0,0.00019999,2]
[360536289,1746858642717,-400.0,0.00019999,2]
[360536291,1746858642726,-396.34416,0.00019999,2]
[360536293,1746858642735,-400.0,0.00019999,2]
[360536295,1746858642744,-400.0,0.00019999,2]
[360536297,1746858642753,-185.86826539,0.00019999,2]
[360536299,1746858642762,-400.0,0.00019999,2]
[360536301,1746858642772,-400.0,0.00019999,2]
[360536303,1746858642781,-464.46,0.00019999,2]
[360536305,1746858642791,-400.0,0.00019999,2]
[360536307,1746858642801,-400.0,0.00019999,2]
[360536309,1746858642812,-250.20843308,0.00019999,2]
[360536310,1746858642821,-400.0,0.00019999,2]
[360536311,1746858642830,-525.52334241,0.00019999,2]
[360536312,1746858642840,-400.0,0.00019999,2]
[360536313,1746858642850,-486.50175506,0.00019999,2]
[360536314,1746858642859,-400.0,0.00019999,2]
[360536315,1746858642868,-167.96267066,0.00019999,2]
[360536316,1746858642878,-400.0,0.00019999,2]
[360536317,1746858642888,-516.56133596,0.00019999,2]
[360536318,1746858642897,-400.0,0.00019999,2]
[360536319,1746858642906,-400.0,0.00019999,2]
[360536320,1746858642915,-493.33,0.00019999,2]
[360536321,1746858642924,-400.0,0.00019999,2]
[360536322,1746858642933,-450.0,0.00019999,2]
[360536323,1746858642943,-480.07715825,0.00019999,2]
[360536324,1746858642953,-400.0,0.00019999,2]
[360536325,1746858642963,-400.0,0.00019999,2]
[360536326,1746858642971,-400.0,0.00019999,2]
[360536327,1746858642980,-400.0,0.00019999,2]
[360536328,1746858642990,-400.0,0.00019999,2]
[360536329,1746858642999,-400.0,0.00019999,2]
[360536330,1746858643008,-283.22,0.00019999,2]
[360536331,1746858643017,-400.0,0.00019999,2]
[360536332,1746858643026,-400.0,0.00019999,2]
[360536333,1746858643035,-400.0,0.00019999,2]
[360536334,1746858643044,-164.6134521,0.00019999,2]
[360536335,1746858643055,-400.0,0.00019999,2]
[360536336,1746858643064,-400.0,0.00019999,2]
[360536337,1746858643073,-400.0,0.00019999,2]
[360536338,1746858643082,-400.0,0.00019999,2]
[360536339,1746858643092,-400.0,0.00019999,2]
[360536340,1746858643101,-400.0,0.00019999,2]
[360536341,1746858643110,-400.0,0.00019999,2]
[360536342,1746858643119,-460.77,0.00019999,2]
[360536343,1746858643129,-1424.93,0.00019999,2]
[360536344,1746858643138,-1424.93,0.00019999,2]
[360536345,1746858643147,-1424.93,0.00019999,2]
[360536346,1746858643156,-1424.93,0.00019999,2]
[360536347,1746858643167,-1424.93,0.00019999,2]